bitfinex-derivatives/quotes_ETHF0:USTF0_20250520
["timestamp","ask_amount","ask_price","bid_price","bid_amount"]
[1747772101967,1.72423774,2499.7,2499.6,18.27585722]
[1747772102370,1.72423774,2499.7,2499.6,25.27613722]
[1747772102566,1.1355,2500.5,2499.7,1.99941]
[1747772102862,3.2078,2501.0,2500.3,3.2078]
[1747772103067,3.2078,2501.0,2500.5,0.79951]
[1747772103068,0.79948,2500.7,2500.5,0.79951]
[1747772103264,0.79953,2500.5,2500.4,0.79954]
[1747772103462,0.79951,2500.6,2500.5,0.79953]
[1747772103866,0.00598922,2500.8,2500.7,0.79947]
[1747772104061,0.79947,2500.7,2500.6,0.79948]
[1747772104257,0.79952,2500.6,2500.5,0.79952]
[1747772104463,5.37490922,2500.8,2500.3,3.21378922]
[1747772104764,0.79955,2500.4,2500.3,4.01335922]
[1747772105267,0.79955,2500.4,2500.3,5.21350922]
[1747772105470,2.79927,2500.4,2500.3,0.00598922]
[1747772106472,0.79955,2500.4,2500.3,2.00570922]
[1747772106672,2.10385,2500.4,2500.3,2.00570922]
[1747772107071,2.10385,2500.4,2500.3,0.00598922]
[1747772107371,2.10385,2500.4,2500.0,1.61897978]
[1747772107372,0.79965,2500.1,2500.0,0.31987978]
[1747772107765,2.79961001,2500.1,2500.0,0.31987978]
[1747772107966,2.79961001,2500.1,2499.9,0.79971]
[1747772107967,0.79968,2500.0,2499.9,0.79971]
[1747772108167,0.79972,2499.9,2499.8,0.79972]
[1747772108568,5.20677,2500.4,2499.8,5.20792]
[1747772108768,1.3043,2500.3,2499.9,1.3123]
[1747772109075,0.79965,2500.2,2500.1,0.79964]
[1747772109276,0.79964,2500.2,2500.1,0.79964]
[1747772109576,0.79971,2499.9,2499.8,3.2078]
[1747772109775,0.79978,2499.7,2499.6,0.31987978]
[1747772110070,0.79277303,2499.7,2499.6,2.32015978]
[1747772110468,0.79277303,2499.7,2499.6,0.31987978]
[1747772110469,2.79305303,2499.7,2499.6,0.31987978]
[1747772111375,0.8,2499.0,2498.9,0.31996719]
[1747772111575,0.8,2499.0,2498.9,2.42127719]
[1747772111768,0.8,2499.0,2498.9,4.42211719]
[1747772111966,0.8,2499.0,2498.9,7.62991719]
[1747772112166,0.8,2499.0,2498.9,4.42211719]
[1747772112478,0.79997,2499.1,2499.0,0.8]
[1747772112669,2.19897,2499.1,2499.0,0.8]
[1747772112979,3.39976,2499.1,2498.8,14.033]
[1747772113163,2.00001,2499.0,2498.7,14.036]
[1747772113368,0.80006,2498.8,2498.7,14.036]
[1747772113569,0.80006,2498.8,2498.7,14.8361]
[1747772113770,5.20880001,2498.8,2498.3,3.2078]
[1747772113980,0.80022,2498.4,2498.3,5.42911]
[1747772114170,0.80019,2498.4,2498.3,5.42911]
[1747772114370,0.80019,2498.4,2498.3,7.67543704]
[1747772114573,4.2622,2499.1,2498.3,11.63022]
[1747772114774,0.80019,2498.4,2498.3,4.6289]
[1747772114979,3.2078,2498.4,2497.4,2.5793489]
[1747772115181,3.2078,2497.5,2497.4,4.8009389]
[1747772115369,3.2078,2497.5,2497.4,1.4211]
[1747772115569,3.2078,2497.5,2497.4,3.42314]
[1747772115770,3.2078,2497.5,2497.3,0.73094708]
[1747772116078,3.2078,2497.5,2497.3,2.73302708]
[1747772116281,5.20988001,2497.5,2497.3,0.73094708]
[1747772116478,5.20988001,2497.5,2496.9,0.91684447]
[1747772116479,0.80058,2497.2,2497.1,1.3694]
[1747772116675,4.00838,2497.2,2497.1,1.3694]
[1747772116976,4.00838,2497.2,2497.1,3.37168499]
[1747772117573,4.00838,2497.2,2497.1,2.00228499]
[1747772117775,3.2078,2497.2,2496.9,13.984]
[1747772118072,1.3539,2497.1,2496.7,13.984]
[1747772118279,4.00851,2496.8,2496.7,13.984]
[1747772118680,3.2078,2497.4,2496.7,20.986605]
[1747772118972,3.2078,2497.4,2497.3,0.80055]
[1747772119276,3.2078,2498.0,2497.6,0.80045]
[1747772119473,3.2078,2498.0,2497.6,13.988]
[1747772119676,0.93192132,2497.7,2497.6,15.98988]
[1747772119876,0.93192132,2497.7,2497.6,16.79033]
[1747772120076,0.93192132,2497.7,2497.6,15.98988]
[1747772120378,0.13150132,2497.7,2497.6,16.79033]
[1747772120573,0.93192132,2497.7,2497.6,15.98988]
[1747772120772,0.93192132,2497.7,2497.6,17.27858]
[1747772121383,4.13972132,2497.7,2497.6,17.27858]
[1747772121579,4.13972132,2497.7,2497.6,15.2767]
[1747772121779,5.34118132,2497.7,2497.5,0.80046]
[1747772121976,0.80051,2497.4,2497.3,0.08486477]
[1747772122481,0.80051,2497.4,2497.3,4.16813477]
[1747772122674,0.80051,2497.4,2497.3,3.36758477]
[1747772122878,0.13150132,2497.7,2497.6,0.80045]
[1747772123077,0.13150132,2497.7,2497.6,14.79045]
[1747772123281,0.80022,2498.4,2498.2,0.80023]
[1747772123582,0.80022,2498.4,2497.6,20.99188]
[1747772123583,0.80019,2498.4,2498.3,0.80022]
[1747772123779,2.3407,2498.5,2498.0,14.7903]
[1747772123780,0.80029,2498.1,2498.0,14.7903]
[1747772123975,0.80029,2498.1,2498.0,13.99]
[1747772124176,0.80029,2498.1,2498.0,15.99156]
[1747772124483,0.80027,2498.2,2498.0,16.79188]
[1747772124682,0.80027,2498.2,2498.0,14.79032]
[1747772124982,0.80029,2498.1,2498.0,16.79184]
[1747772125183,0.80027,2498.2,2498.0,13.99]
[1747772125382,0.00600132,2498.3,2498.2,0.80026]
[1747772125977,0.00600132,2498.3,2498.2,2.80166]
[1747772127376,0.00600132,2498.3,2498.2,7.80166]
[1747772127377,1.32e-06,2498.3,2498.2,7.80166]
[1747772128889,1.32e-06,2498.3,2498.2,8.12180105]
[1747772129288,1.32e-06,2498.3,2498.2,3.12180105]
[1747772131089,1.32e-06,2498.3,2498.2,17.11280105]
[1747772131287,0.80023132,2498.3,2498.2,17.11280105]
[1747772131688,1.32e-06,2498.3,2498.2,17.11280105]
[1747772134382,0.80023132,2498.3,2498.2,17.11280105]
[1747772134589,1.32e-06,2498.3,2498.2,17.11280105]
[1747772135786,0.80023132,2498.3,2498.2,16.67679818]
[1747772135993,0.80023132,2498.3,2498.2,2.68579818]
[1747772136195,0.80023132,2498.3,2498.2,16.67679818]
[1747772136896,1.32e-06,2498.3,2498.2,17.47705818]
[1747772137094,0.80022132,2498.3,2498.2,17.47705818]
[1747772137294,0.80022132,2498.3,2498.2,16.31254105]
[1747772138198,0.80022132,2498.3,2498.2,17.11280105]
[1747772138499,0.80022132,2498.3,2498.2,14.31114105]
[1747772138687,0.80022132,2498.3,2498.2,0.32014105]
[1747772138883,2.80162132,2498.3,2498.2,0.32014105]
[1747772139395,4.18232132,2498.3,2498.2,0.32014105]
[1747772140097,0.80029,2498.1,2498.0,7.20449818]
[1747772140395,4.00809,2498.1,2498.0,7.20449818]
[1747772140595,4.00809,2498.1,2498.0,9.20605818]
[1747772141395,4.00809,2498.1,2498.0,8.84180105]
[1747772141690,4.00809,2498.1,2498.0,9.64212105]
[1747772141897,4.00809,2498.1,2498.0,8.84180105]
[1747772142093,6.00965,2498.1,2498.0,5.51894105]
[1747772142294,0.80032,2498.0,2497.9,0.54537754]
[1747772142497,2.18202,2498.0,2497.9,0.54537754]
[1747772142694,4.18366,2498.0,2497.9,0.54537754]
[1747772143294,0.80032,2498.0,2497.9,2.37063592]
[1747772143490,0.80032,2498.0,2497.9,3.75633592]
[1747772144012,4.00813,2498.1,2498.0,0.80033]
[1747772144297,4.00813,2498.1,2498.0,2.18603]
[1747772144487,4.00813,2498.1,2498.0,1.3857]
[1747772144894,4.00813,2498.1,2498.0,1.75469592]
[1747772146090,4.00813,2498.1,2498.0,2.55502592]
[1747772146898,4.00813,2498.1,2498.0,1.75469592]
[1747772147097,4.00813,2498.1,2498.0,2.55502592]
[1747772147399,4.00813,2498.1,2498.0,1.75469592]
[1747772147598,4.00813,2498.1,2498.0,0.36899592]
[1747772149401,0.80033,2498.0,2497.9,1.34573754]
[1747772149604,3.2078,2498.1,2498.0,0.80033]
[1747772149793,4.0081,2498.1,2498.0,2.19503]
[1747772150087,3.2078,2498.1,2498.0,4.19659]
[1747772150288,4.0081,2498.1,2498.0,4.19659]
[1747772150590,3.2078,2498.1,2498.0,4.19659]
[1747772150791,4.0081,2498.1,2498.0,4.19659]
[1747772152601,3.2078,2498.1,2498.0,4.19659]
[1747772152798,1.32e-06,2498.3,2498.2,0.80027]
[1747772153103,0.80023132,2498.3,2498.2,14.76427]
[1747772153304,0.80023132,2498.3,2498.2,16.76567]
[1747772153504,1.32e-06,2498.3,2498.2,16.76567]
[1747772153803,0.80023132,2498.3,2498.2,16.76567]
[1747772153996,0.80023132,2498.3,2498.2,15.9654]
[1747772154408,0.80023132,2498.3,2498.2,17.64202388]
[1747772155105,0.80023132,2498.3,2498.2,16.84175388]
[1747772155403,7.80163132,2498.3,2498.2,0.87635388]
[1747772155600,9.97043132,2498.3,2498.2,0.32013556]
[1747772155802,0.80036,2497.9,2497.8,0.7369484]
[1747772156001,4.00816,2497.9,2497.8,0.7369484]
[1747772156202,6.00988,2497.9,2497.8,0.7369484]
[1747772156798,6.00988,2497.9,2497.8,0.37682453]
[1747772157306,2.80208,2497.9,2497.8,1.17721453]
[1747772157504,2.08955,2498.0,2497.9,0.80036]
[1747772157805,4.00816,2497.9,2497.8,1.17719453]
[1747772158005,5.29736,2497.9,2497.8,1.17719453]
[1747772158308,5.29736,2497.9,2497.8,3.17891452]
[1747772159508,3.2078,2497.9,2497.8,3.17891452]
[1747772160208,3.2078,2497.9,2497.8,8.17891452]
[1747772160404,0.80027,2498.2,2498.1,0.8003]
[1747772160711,0.80027,2498.2,2498.1,14.7643]
[1747772160902,0.80027,2498.2,2498.1,16.76578]
[1747772161803,5.34865132,2498.3,2498.2,0.80027]
[1747772162110,4.00805132,2498.3,2498.2,2.21567]
[1747772162311,4.00805132,2498.3,2498.2,3.4168]
[1747772162510,4.00805132,2498.3,2498.2,4.21706]
[1747772162717,3.20780132,2498.3,2498.2,4.21706]
[1747772163005,3.20780132,2498.3,2498.2,4.58771525]
[1747772163509,4.00803132,2498.3,2498.2,4.58771525]
[1747772164411,4.00803132,2498.3,2498.2,4.21706]
[1747772164612,4.00803132,2498.3,2498.2,2.0014]
[1747772165013,0.80029,2498.1,2498.0,1.2945]
[1747772165205,0.80029,2498.1,2498.0,13.964]
[1747772165406,2.80185,2498.1,2498.0,13.964]
[1747772165607,0.80036,2497.9,2497.8,0.00600132]
[1747772165811,4.00816,2497.9,2497.8,0.00600132]
[1747772166010,6.00988,2497.9,2497.8,0.00600132]
[1747772168018,0.80052,2497.4,2497.3,0.73094708]
[1747772168317,4.00832,2497.4,2497.3,0.73094708]
[1747772168616,4.00832,2497.4,2496.7,1.3962]
[1747772168617,0.80065,2497.0,2496.7,13.965]
[1747772168811,0.80065,2497.0,2496.7,0.00600132]
[1747772168812,4.00845,2497.0,2496.7,0.00600132]
[1747772169014,0.80072,2496.8,2496.7,0.00600132]
[1747772169413,0.80072,2496.8,2496.7,1.32e-06]
[1747772169414,2.803325,2496.8,2496.7,1.32e-06]
[1747772169617,10.381825,2496.8,2496.7,1.32e-06]
[1747772170111,0.80088,2496.3,2496.2,3.24755912]
[1747772170316,3.2078,2496.3,2496.2,4.04846912]
[1747772170512,3.2078,2496.6,2496.2,27.59718412]
[1747772170821,3.2078,2496.6,2496.5,0.80081]
[1747772171213,3.2078,2496.6,2496.5,2.803575]
[1747772171919,3.2078,2496.6,2496.5,3.40212398]
[1747772172716,0.00600132,2497.0,2496.9,0.80068]
[1747772172918,0.00600132,2497.0,2496.9,14.76868]
[1747772173110,3.33542448,2497.4,2497.3,0.80056]
[1747772173317,3.33542448,2497.4,2497.3,14.76856]
[1747772173617,3.33542448,2497.4,2497.3,16.77068]
[1747772175420,3.2078,2497.4,2497.3,17.09099066]
[1747772177220,6.01044,2497.4,2497.3,0.32031066]
[1747772177425,5.38642,2497.4,2497.3,0.32031066]
[1747772177626,7.38854,2497.4,2497.3,0.32031066]
[1747772178321,12.38854,2497.4,2497.3,0.32031066]
[1747772178513,13.48474,2497.4,2497.3,6.6e-07]
[1747772179018,0.80068,2496.9,2496.8,0.55415669]
[1747772179220,0.80075,2496.7,2496.6,0.27706841]
[1747772179618,2.803435,2496.7,2496.6,0.27706841]
[1747772179821,4.132835,2496.7,2496.6,0.27706841]
[1747772180320,3.2078,2496.9,2496.8,0.80072]
[1747772180623,3.2078,2496.9,2496.8,14.72872]
[1747772180828,5.210325,2496.9,2496.6,0.80077]
[1747772181027,0.80075,2496.7,2496.6,14.72877]
[1747772181530,0.80075,2496.7,2496.6,15.930685]
[1747772181724,1.3294,2496.8,2496.4,2.18253]
[1747772181929,0.80081,2496.5,2496.4,2.18253]
[1747772182125,0.80081,2496.5,2496.4,16.11153]
[1747772182327,0.80081,2496.5,2496.4,18.11437499]
[1747772182525,2.13021,2496.5,2496.4,13.929]
[1747772182727,4.133055,2496.5,2496.4,13.929]
[1747772183842,0.80091,2496.2,2496.1,0.80092]
[1747772184043,4.00871,2496.2,2496.1,0.80092]
[1747772184332,3.2078,2496.2,2496.1,0.80094]
[1747772184640,4.00871,2496.2,2496.1,0.80094]
[1747772184828,0.80096,2496.1,2496.0,0.80095]
[1747772185336,2.804125,2496.1,2496.0,0.80095]
[1747772185535,4.140225,2496.1,2496.0,0.80097]
[1747772185834,4.140225,2496.1,2496.0,2.15957]
[1747772187139,4.140225,2496.1,2496.0,1.3586]
[1747772187631,3.2078,2496.2,2496.1,0.80094]
[1747772187838,0.00600132,2496.3,2496.2,0.80091]
[1747772188235,0.00600132,2496.3,2496.2,2.803915]
[1747772189439,0.80688132,2496.3,2496.2,15.935005]
[1747772189641,0.80688132,2496.3,2496.2,16.735915]
[1747772189938,0.80688132,2496.3,2496.2,2.803915]
[1747772190142,0.80688132,2496.3,2496.2,16.735915]
[1747772190340,0.80107,2495.7,2495.6,0.55415669]
[1747772190549,3.2078,2495.7,2495.6,0.55415669]
[1747772190836,3.2078,2495.7,2495.3,0.73944485]
[1747772191043,3.2078,2495.4,2495.3,0.73944485]
[1747772191430,10.211525,2495.4,2494.7,0.91684447]
[1747772191735,3.2078,2494.8,2494.0,0.73996094]
[1747772191933,0.00601347,2494.6,2494.1,13.933]
[1747772192133,3.2078,2494.4,2494.1,15.2756]
[1747772192330,2.01054347,2494.6,2494.2,1.3426]
[1747772192534,3.2078,2494.3,2494.2,1.3426]
[1747772192733,3.21381347,2494.6,2494.2,1.3426]
[1747772192940,3.2078,2494.3,2494.2,1.3426]
[1747772193342,3.2078,2494.3,2494.2,3.34721]
[1747772193643,3.2078,2494.3,2494.2,3.66781313]
[1747772195049,0.00601347,2494.6,2494.2,11.87561313]
[1747772195343,3.2078,2495.2,2494.5,3.2078]
[1747772195540,3.2078,2495.3,2494.6,16.4291]
[1747772195743,4.5672,2495.5,2494.9,3.2078]
[1747772195940,3.2078,2495.5,2495.0,2.5011]
[1747772196146,3.2078,2495.5,2495.1,13.936]
[1747772196334,3.2078,2495.5,2495.2,4.6058]
[1747772196335,0.00601347,2495.5,2495.2,4.6058]
[1747772196536,1.62695232,2496.5,2495.2,4.6058]
[1747772196537,3.2078,2496.3,2495.3,1.48286477]
[1747772196746,3.2078,2495.8,2495.4,15.0311]
[1747772197044,3.2078,2495.5,2495.3,0.08486477]
[1747772197430,1.3594,2495.4,2495.3,0.08486477]
[1747772197643,1.3594,2495.4,2495.3,0.4054679]
[1747772197843,3.363125,2495.4,2495.3,0.4054679]
[1747772198531,3.2078,2495.5,2495.3,0.4054679]
[1747772198736,3.2078,2495.5,2495.3,0.08486477]
[1747772198938,5.211485,2495.5,2495.3,0.08486477]
[1747772199145,1.3911,2495.4,2495.3,0.08486477]
[1747772199639,3.394825,2495.4,2495.3,0.08486477]
[1747772200643,0.00601347,2495.6,2495.4,0.80116]
[1747772200847,0.00601347,2495.6,2495.5,15.3069]
[1747772201043,0.00601347,2495.6,2495.5,16.10803]
[1747772201240,0.00601347,2495.6,2495.5,18.111595]
[1747772201847,3.47e-06,2495.6,2495.5,23.111595]
[1747772202644,3.47e-06,2495.6,2495.5,23.48072911]
[1747772202843,3.47e-06,2495.6,2495.5,23.80110885]
[1747772203648,3.47e-06,2495.6,2495.5,23.80010885]
[1747772203848,3.47e-06,2495.6,2495.5,23.43097474]
[1747772204744,3.47e-06,2495.6,2495.5,31.43097474]
[1747772207242,3.47e-06,2495.6,2495.5,4.49397474]
[1747772207452,3.47e-06,2495.6,2495.5,18.40497474]
[1747772208037,3.47e-06,2495.6,2495.5,26.61277474]
[1747772209148,3.47e-06,2495.6,2495.5,34.61277474]
[1747772209649,3.47e-06,2495.6,2495.5,48.13177474]
[1747772209851,5.37121,2496.5,2496.1,0.80092]
[1747772210151,4.16662501,2496.5,2496.2,13.911]
[1747772210450,3.2078,2496.3,2496.2,14.7119]
[1747772210747,3.2078,2496.3,2496.0,0.80096]
[1747772210949,1.356,2496.2,2495.9,13.911]
[1747772211149,3.2078,2496.0,2495.6,1.0979]
[1747772211349,1.356,2495.9,2495.7,14.71206]
[1747772211653,1.356,2495.9,2495.5,0.40524451]
[1747772211848,4.00889,2495.7,2495.5,14.36571844]
[1747772212047,1.356,2495.6,2495.5,0.45471844]
[1747772212652,1.356,2495.6,2495.5,3.25941344]
[1747772212950,5.36477,2496.0,2495.8,0.80101]
[1747772213147,7.368055,2496.0,2495.8,14.71201]
[1747772213546,0.801,2495.9,2495.8,13.911]
[1747772213748,2.2105,2495.9,2495.8,13.911]
[1747772213944,4.213825,2495.9,2495.8,13.911]
[1747772214543,4.213825,2495.9,2495.8,14.23142666]
[1747772215550,3.412825,2495.9,2495.8,15.03245666]
[1747772216752,3.2078,2496.0,2495.9,0.801]
[1747772216950,3.2078,2496.0,2495.9,2.1097]
[1747772217148,3.2078,2496.0,2495.9,4.112945]
[1747772217453,1.3433,2496.2,2496.1,0.80093]
[1747772217950,3.346385,2496.2,2496.1,0.80093]
[1747772218153,3.346385,2496.2,2496.1,1.12135666]
[1747772219156,4.147285,2496.2,2496.1,1.12135666]
[1747772220255,3.346385,2496.2,2496.1,1.12135666]
[1747772220457,1.3433,2496.2,2496.1,1.12135666]
[1747772221150,3.21381347,2496.4,2496.1,1.12135666]
[1747772221354,5.21681847,2496.4,2496.3,0.80087]
[1747772221542,4.01464347,2496.4,2496.3,0.80087]
[1747772221749,0.80087,2496.3,2496.2,16.36259666]
[1747772222056,2.16927,2496.3,2496.2,16.36259666]
[1747772222255,2.16927,2496.3,2496.2,17.03530166]
[1747772222555,1.3684,2496.3,2496.2,17.03530166]
[1747772222959,2.16927,2496.3,2496.2,17.03530166]
[1747772223450,2.16927,2496.3,2496.2,1.12129666]
[1747772223656,2.16927,2496.3,2496.2,15.03229666]
[1747772223858,4.172275,2496.3,2496.2,15.03229666]
[1747772224060,4.172275,2496.3,2496.2,0.32042666]
[1747772224360,1.3684,2496.3,2496.2,1.12132666]
[1747772224749,4.172275,2496.3,2496.2,0.32042666]
[1747772224947,4.172275,2496.3,2496.2,14.23042666]
[1747772225160,3.371405,2496.3,2496.2,15.03132666]
[1747772225457,1.3684,2496.3,2496.2,15.03132666]
[1747772225656,1.3684,2496.3,2496.2,17.03433166]
[1747772225848,3.2078,2497.1,2496.2,21.23343166]
[1747772226055,1.3221,2497.3,2497.2,0.80057]
[1747772226246,0.16962303,2497.4,2497.3,0.80054]
[1747772226448,0.97614727,2497.6,2497.5,0.80048]
[1747772226658,2.6395964,2497.7,2497.5,0.80047]
[1747772226851,3.4400264,2497.7,2497.6,13.91]
[1747772227254,3.4400264,2497.7,2497.6,16.71233]
[1747772227452,2.6395964,2497.7,2497.6,16.71233]
[1747772228346,1.3174964,2497.7,2497.6,18.08233]
[1747772228750,1.3174964,2497.7,2497.6,18.40275666]
[1747772230654,0.00601347,2497.8,2497.7,0.80042]
[1747772230963,0.00601347,2497.8,2497.7,2.80222]
[1747772231264,3.2078,2498.1,2498.0,0.80032]
[1747772231450,4.5629,2498.1,2498.0,14.70632]
[1747772231647,4.5629,2498.1,2498.0,16.70788]
[1747772231860,1.3551,2498.1,2498.0,16.70788]
[1747772232663,0.00601347,2498.3,2498.0,15.90756]
[1747772232961,1.99985,2499.3,2498.7,0.80007]
[1747772233166,3.2078,2498.9,2498.0,1.35]
[1747772233460,0.80032,2498.1,2497.9,0.32042666]
[1747772233657,3.2078,2498.5,2497.9,0.32042666]
[1747772233857,3.2078,2498.5,2498.0,2.00081]
[1747772234058,3.21172945,2498.5,2498.4,0.80019]
[1747772234257,3.21172945,2498.5,2498.4,14.70419]
[1747772234450,6.58506945,2498.5,2498.4,14.70419]
[1747772234655,6.58506945,2498.5,2498.4,13.904]
[1747772234863,7.38522945,2498.5,2498.4,13.904]
[1747772236362,5.21296945,2498.5,2498.4,14.70419]
[1747772237163,2.3231,2499.1,2499.0,0.8]
[1747772237467,1.3721,2499.2,2499.1,0.79997]
[1747772237665,2.17205,2499.2,2499.0,14.70198]
[1747772237961,4.17277001,2499.2,2499.0,14.70198]
[1747772238168,0.79997,2499.1,2499.0,13.902]
[1747772238368,2.13007,2499.1,2499.0,13.902]
[1747772238665,1.3301,2499.1,2499.0,16.70276]
[1747772239560,2.13007,2499.1,2499.0,15.90276]
[1747772239765,2.13007,2499.1,2499.0,16.70276]
[1747772239960,0.80006,2498.8,2498.7,3.2078]
[1747772240164,0.8001,2498.7,2498.6,13.881]
[1747772240359,2.1302,2498.7,2498.6,14.68113]
[1747772240555,4.13128,2498.7,2498.6,14.68113]
[1747772240758,0.80006,2498.9,2498.7,0.8001]
[1747772240958,3.17136,2499.0,2498.8,1.3529]
[1747772241164,2.12553,2498.9,2498.8,1.3529]
[1747772241366,0.8001,2498.7,2498.6,14.68111]
[1747772241567,0.8001,2498.7,2498.6,16.03401]
[1747772241866,1.3255,2498.9,2498.8,0.80006]
[1747772242067,1.1704,2499.0,2498.9,0.80003]
[1747772242266,0.80002,2499.0,2498.7,1.3529]
[1747772242463,0.80002,2499.0,2498.9,0.80001]
[1747772243265,0.80003,2498.9,2498.8,2.15294]
[1747772243865,0.80003,2498.9,2498.8,4.15386]
[1747772244258,4.5857,2499.1,2498.8,3.35382]
[1747772244458,4.5857,2499.1,2498.8,1.3529]
[1747772244459,0.80003,2498.9,2498.8,1.3529]
[1747772244861,0.80003,2498.9,2498.8,3.35382]
[1747772245062,0.8001,2498.7,2498.6,13.881]
[1747772245463,2.80118,2498.7,2498.6,13.881]
[1747772245664,4.17908,2498.7,2498.6,13.881]
[1747772246059,1.3779,2498.7,2498.6,14.68113]
[1747772246559,1.3779,2498.7,2498.6,16.68221]
[1747772247370,1.3779,2498.7,2498.6,16.68021]
[1747772247669,7.38688,2498.7,2498.6,13.879]
[1747772247867,0.80016,2498.5,2498.4,0.32002783]
[1747772248062,0.80016,2498.5,2498.4,7.83e-06]
[1747772248360,7.8014,2498.5,2498.4,7.83e-06]
[1747772248567,4.0988,2498.5,2498.4,7.83e-06]
[1747772248866,3.29864,2498.5,2498.0,0.00601347]
[1747772249069,4.00809,2498.1,2498.0,0.00601347]
[1747772249561,6.00965,2498.1,2498.0,0.00601347]
[1747772250369,7.37755,2498.1,2498.0,0.00601347]
[1747772253171,6.57726,2498.1,2498.0,0.00601347]
[1747772253468,3.36946,2498.1,2498.0,0.80633347]
[1747772253666,1.3679,2498.1,2498.0,2.80789347]
[1747772253973,0.80021,2498.4,2498.2,0.80025]
[1747772254166,2.17732,2498.3,2498.2,0.80025]
[1747772254367,0.80026,2498.2,2498.1,16.02377]
[1747772254568,1.3771,2498.2,2498.1,14.68127]
[1747772254868,1.3771,2498.2,2498.0,0.00601347]
[1747772255168,0.80029,2498.1,2498.0,0.00601347]
[1747772255365,0.80029,2498.1,2498.0,0.80632347]
[1747772255565,4.17895,2498.1,2498.0,0.00601347]
[1747772256566,4.17895,2498.1,2498.0,0.80633347]
[1747772256867,4.17895,2498.1,2498.0,0.00601347]
[1747772257372,4.17895,2498.1,2498.0,0.80633347]
[1747772257872,4.17895,2498.1,2498.0,0.00601347]
[1747772259768,10.31805,2498.1,2498.0,0.00601347]
[1747772263474,5.31805,2498.1,2498.0,0.00601347]
[1747772264473,3.2078,2498.2,2498.0,13.88801347]
[1747772264670,1.1735,2499.0,2498.8,0.80003]
[1747772264870,4.45892,2499.0,2498.9,0.80003]
[1747772265077,2.1593,2499.0,2498.9,0.80003]
[1747772265277,3.36014,2499.0,2498.9,0.80003]
[1747772265678,4.16014,2499.0,2498.9,0.80003]
[1747772266275,0.99571221,2499.1,2499.0,0.8]
[1747772266482,0.99571221,2499.1,2499.0,5.4278]
[1747772266772,0.99571221,2499.1,2499.0,4.22076]
[1747772266978,0.99571221,2499.1,2499.0,3.42076]
[1747772267179,1.79568221,2499.1,2499.0,2.00076]
[1747772267570,0.79996,2499.2,2499.0,3.12080165]
[1747772267771,2.14426,2499.2,2499.0,2.54004165]
[1747772268272,0.79997,2499.1,2499.0,1.74004165]
[1747772268573,1.3443,2499.2,2499.1,0.79997]
[1747772268978,3.2078,2499.7,2499.1,2.00068]
[1747772269179,0.79987,2499.4,2499.3,0.79988]
[1747772269486,2.80039,2499.4,2499.2,2.11052]
[1747772269681,0.7999,2499.3,2499.2,2.11052]
[1747772269880,0.7999,2499.3,2499.2,0.79992]
[1747772270073,2.12572,2499.6,2499.5,0.79984]
[1747772270279,1.3259,2499.6,2499.3,13.854]
[1747772270477,3.2078,2499.7,2499.3,13.854]
[1747772270678,3.2078,2499.7,2499.4,0.79987]
[1747772270877,3.2078,2499.7,2499.3,17.0618]
[1747772271182,0.79982,2499.6,2499.5,0.79984]
[1747772271684,4.00759,2499.7,2499.6,0.79981]
[1747772271884,3.2078,2499.7,2499.6,0.79981]
[1747772272184,0.79974,2499.9,2499.7,0.79975]
[1747772272385,0.79971,2499.9,2499.8,13.852]
[1747772272785,4.5689,2500.2,2499.8,13.852]
[1747772273079,0.79971,2499.9,2499.8,13.852]
[1747772273277,0.7997,2500.0,2499.9,0.79969]
[1747772273580,6.5689,2500.2,2499.8,13.852]
[1747772273581,0.79971,2499.9,2499.8,14.65172]
[1747772273777,0.79974,2499.8,2499.7,1.15]
[1747772273982,0.79974,2499.8,2499.7,15.002]
[1747772274183,1.378,2500.0,2499.7,17.0022]
[1747772274383,0.79968,2500.1,2499.8,1.99935]
[1747772274577,0.79968,2500.0,2499.9,4.00749]
[1747772274778,0.79967,2500.1,2500.0,0.79967]
[1747772274977,0.79967,2500.1,2500.0,13.852]
[1747772275187,2.79963001,2500.1,2500.0,13.852]
[1747772275779,0.79974,2499.8,2499.7,1.15]
[1747772275974,0.79974,2499.8,2499.7,15.0]
[1747772276180,0.79974,2499.8,2499.7,17.0002]
[1747772276994,0.79974,2499.8,2499.7,17.79998]
[1747772277183,0.79974,2499.8,2499.7,17.0002]
[1747772277386,0.79974,2499.8,2499.7,3.1502]
[1747772277584,0.79974,2499.8,2499.7,17.0002]
[1747772278682,0.79973,2499.9,2499.7,17.79996]
[1747772278883,0.79973,2499.9,2499.8,0.79974]
[1747772279183,1.99945,2499.7,2499.4,13.849]
[1747772279387,0.79984,2499.5,2499.4,13.849]
[1747772279789,2.80028,2499.5,2499.4,13.849]
[1747772280091,0.79987,2499.4,2499.3,0.27516433]
[1747772280285,0.79987,2499.4,2499.3,14.12416433]
[1747772280286,2.80039,2499.4,2499.3,14.12416433]
[1747772280486,2.80039,2499.4,2499.3,0.27516433]
[1747772280691,0.79994,2499.2,2499.1,0.0060012]
[1747772281084,2.80062,2499.2,2499.1,0.0060012]
[1747772281285,0.80003,2498.9,2498.8,3.33e-06]
[1747772281589,4.00783,2498.9,2498.8,3.33e-06]
[1747772281985,3.2078,2499.4,2498.8,5.20872333]
[1747772282183,1.99985,2499.2,2498.9,13.849]
[1747772282383,0.8,2499.0,2498.9,0.0060012]
[1747772282782,2.80084,2499.0,2498.9,0.0060012]
[1747772282987,4.09664,2499.0,2498.9,0.0060012]
[1747772289092,0.8,2499.0,2498.9,2.0068412]
[1747772289798,2.80084,2499.0,2498.9,0.0060012]
[1747772289991,2.80084,2499.0,2498.9,1.2e-06]
[1747772290186,4.16234,2499.0,2498.9,1.2e-06]
[1747772290396,0.80023,2498.3,2498.2,1.3079]
[1747772290592,2.00052,2498.4,2498.0,14.9569]
[1747772290791,2.00052,2498.4,2497.8,0.27516433]
[1747772290792,0.80036,2497.9,2497.8,0.27516433]